bitfinex-derivatives/quotes_BTCF0:USTF0_20210705
["timestamp","ask_amount","ask_price","bid_price","bid_amount"]
[1625499542531,0.16953032,33538.0,33526.0,0.24057544]
[1625499542732,0.66953032,33538.0,33526.0,0.24057544]
[1625499542834,0.05153493,33537.0,33518.0,0.1743281]
[1625499542935,1.71106888,33537.0,33518.0,0.1743281]
[1625499543033,1.71106888,33537.0,33513.0,1.9178941]
[1625499543034,0.67282106,33533.0,33519.0,0.00385719]
[1625499543232,0.79082106,33533.0,33519.0,0.00385719]
[1625499543334,0.05154211,33532.0,33515.0,0.00385742]
[1625499543432,0.11054211,33532.0,33515.0,0.00385742]
[1625499543533,0.24057544,33517.0,33516.0,0.24057544]
[1625499543635,0.61193544,33517.0,33516.0,0.24057544]
[1625499543934,0.61193544,33517.0,33516.0,0.24443302]
[1625499545034,0.61193544,33517.0,33516.0,0.30343302]
[1625499545386,0.61193544,33517.0,33516.0,0.24443302]
[1625499545486,0.61193544,33517.0,33516.0,0.30343302]
[1625499545786,0.29957544,33517.0,33516.0,0.30343302]
[1625499545886,0.24057544,33517.0,33516.0,0.30343302]
[1625499546639,0.24057544,33517.0,33516.0,0.24443302]
[1625499547090,0.24057544,33517.0,33516.0,0.30343302]
[1625499547791,0.24057544,33517.0,33516.0,0.24443302]
[1625499547894,0.24057544,33517.0,33516.0,0.30343302]
[1625499549148,0.29957544,33517.0,33516.0,0.30343302]
[1625499549499,0.29957544,33517.0,33516.0,0.24443302]
[1625499549602,0.29957544,33517.0,33514.0,4.1116]
[1625499549703,0.29957544,33517.0,33512.0,0.51285495]
[1625499550152,0.35857544,33517.0,33512.0,0.51285495]
[1625499550353,0.35857544,33517.0,33512.0,0.25057544]
[1625499551307,0.29957544,33517.0,33512.0,0.25057544]
[1625499551405,0.35857544,33517.0,33512.0,0.25057544]
[1625499551510,0.29957544,33517.0,33512.0,0.25057544]
[1625499551609,0.24057544,33513.0,33512.0,0.25057544]
[1625499551809,0.29957544,33513.0,33512.0,0.25057544]
[1625499552911,0.24057544,33513.0,33512.0,0.25057544]
[1625499553362,0.24057544,33513.0,33512.0,0.30957544]
[1625499553863,0.29957544,33513.0,33512.0,0.30957544]
[1625499554165,0.29957544,33513.0,33512.0,0.39714031]
[1625499554668,0.29957544,33513.0,33512.0,0.57226954]
[1625499554869,0.24057544,33513.0,33512.0,0.57226954]
[1625499555922,0.24057544,33513.0,33512.0,0.30957544]
[1625499556577,0.24057544,33513.0,33512.0,0.31341855]
[1625499556937,0.24057544,33513.0,33512.0,2.35305411]
[1625499557140,0.24057544,33520.0,33512.0,2.35305411]
[1625499557235,0.24057544,33520.0,33512.0,3.57989546]
[1625499557426,0.24057544,33520.0,33513.0,0.00384265]
[1625499557627,0.24057544,33520.0,33519.0,0.74407457]
[1625499557743,0.24057544,33520.0,33519.0,1.00990457]
[1625499557840,0.24057544,33520.0,33519.0,1.06890457]
[1625499558130,0.24057544,33520.0,33519.0,1.12790457]
[1625499558329,0.24057544,33520.0,33519.0,0.86498088]
[1625499558628,0.24057544,33524.0,33519.0,0.86498088]
[1625499559230,0.24057544,33524.0,33519.0,1.56611695]
[1625499559330,0.08462486,33525.0,33519.0,1.56611695]
[1625499559528,0.08462486,33525.0,33520.0,0.00384246]
[1625499559628,0.08462486,33525.0,33524.0,0.24057544]
[1625499559830,0.25398486,33525.0,33524.0,0.29957544]
[1625499560027,0.25398486,33525.0,33524.0,0.30341748]
[1625499560629,0.24057544,33528.0,33527.0,3.7467]
[1625499560829,0.24057544,33528.0,33527.0,4.09012]
[1625499561035,0.24057544,33528.0,33527.0,4.79199274]
[1625499561336,0.24057544,33528.0,33527.0,4.26559056]
[1625499561629,0.24057544,33528.0,33527.0,4.506166]
[1625499561782,0.24057544,33528.0,33527.0,4.59390745]
[1625499562230,0.24057544,33528.0,33527.0,4.41843689]
[1625499562582,0.24057544,33528.0,33527.0,4.33069544]
[1625499563033,0.91833486,33528.0,33527.0,4.33069544]
[1625499563234,0.91833486,33528.0,33527.0,4.27169544]
[1625499563334,0.91833486,33528.0,33527.0,4.33069544]
[1625499563434,0.97733486,33528.0,33527.0,0.24057544]
[1625499564036,3.17845949,33528.0,33527.0,0.24057544]
[1625499565090,4.53284872,33528.0,33527.0,0.24057544]
[1625499565741,4.59184872,33528.0,33527.0,0.24057544]
[1625499565841,4.83851872,33528.0,33527.0,0.24057544]
[1625499566244,4.77951872,33528.0,33527.0,0.24057544]
[1625499568302,5.28724423,33528.0,33527.0,0.24057544]
[1625499568451,5.22824423,33528.0,33527.0,0.24057544]
[1625499569103,5.28724423,33528.0,33527.0,0.24057544]
[1625499570254,5.28724423,33528.0,33527.0,0.29957544]
[1625499570804,5.22824423,33528.0,33527.0,0.29957544]
[1625499571256,3.873855,33528.0,33527.0,0.29957544]
[1625499573612,3.63327956,33528.0,33527.0,0.29957544]
[1625499573861,3.63327956,33528.0,33527.0,0.24057544]
[1625499575869,2.44807163,33528.0,33527.0,0.24057544]
[1625499575968,2.20140163,33528.0,33527.0,0.29957544]
[1625499576367,2.50541163,33528.0,33527.0,0.29957544]
[1625499578774,2.50541163,33528.0,33527.0,0.24057544]
[1625499578874,2.50541163,33528.0,33527.0,0.29957544]
[1625499579074,3.6912978,33528.0,33527.0,0.29957544]
[1625499580177,2.50541163,33528.0,33527.0,0.29957544]
[1625499582236,3.69165845,33528.0,33527.0,0.29957544]
[1625499583035,3.69165845,33528.0,33527.0,0.30342013]
[1625499583734,3.69165845,33528.0,33527.0,0.24442013]
[1625499583835,3.69165845,33528.0,33527.0,0.30342013]
[1625499587044,3.70789604,33528.0,33527.0,0.30342013]
[1625499587997,3.70789604,33528.0,33527.0,0.24442013]
[1625499588096,3.76689604,33528.0,33527.0,0.24442013]
[1625499588397,5.12338468,33528.0,33527.0,0.24442013]
[1625499588996,5.12338468,33528.0,33527.0,0.30342013]
[1625499589096,5.12338468,33528.0,33527.0,0.24442013]
[1625499590750,5.12338468,33528.0,33527.0,0.24057544]
[1625499591606,5.12338468,33528.0,33527.0,0.24442093]
[1625499592356,5.18238468,33528.0,33527.0,0.24442093]
[1625499592454,5.12338468,33528.0,33527.0,0.24057544]
[1625499593705,6.65188717,33528.0,33527.0,0.24057544]
[1625499594211,6.71088717,33528.0,33527.0,0.24057544]
[1625499594309,6.65188717,33528.0,33527.0,0.24057544]
[1625499594412,6.71088717,33528.0,33527.0,0.24057544]
[1625499599417,1.96675008,33528.0,33527.0,0.24057544]
[1625499599518,1.66274008,33528.0,33527.0,0.24057544]
[1625499600068,6.42330738,33528.0,33527.0,0.24057544]
[1625499601020,6.36430738,33528.0,33527.0,0.24057544]
[1625499601675,6.42330738,33528.0,33527.0,0.24057544]
[1625499602278,6.36430738,33528.0,33527.0,0.24057544]
[1625499602377,6.42330738,33528.0,33527.0,0.24057544]
[1625499604081,6.36430738,33528.0,33527.0,0.24057544]
[1625499605285,6.30530738,33528.0,33527.0,0.24057544]
[1625499605589,6.30530738,33528.0,33527.0,0.29957544]
[1625499605986,3.41496902,33528.0,33527.0,0.3034172]
[1625499606086,1.54474008,33528.0,33527.0,0.3034172]
[1625499606186,1.52850249,33528.0,33527.0,0.3034172]
[1625499606888,3.40619556,33528.0,33527.0,1.53621062]
[1625499608093,3.40619556,33528.0,33527.0,3.82559934]
[1625499608094,2.21409522,33528.0,33527.0,3.82559934]
[1625499608743,2.21409522,33528.0,33527.0,5.23433579]
[1625499608744,0.08542918,33528.0,33527.0,5.23433579]
[1625499609292,0.25608747,33529.0,33527.0,5.23433579]
[1625499609695,0.25608747,33529.0,33528.0,4.9329323]
[1625499609791,0.25608747,33529.0,33528.0,4.9919323]
[1625499610696,0.08539963,33529.0,33528.0,4.9919323]
[1625499611194,0.25607984,33530.0,33528.0,4.9919323]
[1625499611513,0.057,33536.0,33528.0,0.06284286]
[1625499611593,0.06674194,42977.0,33529.0,0.00384264]
[1625499611694,0.059,33536.0,33529.0,0.00384264]
[1625499611795,0.059,33536.0,33529.0,0.06284264]
[1625499611895,1.19403454,33531.0,33530.0,1.23230569]
[1625499611996,1.25303454,33531.0,33530.0,1.23230569]
[1625499612095,1.25303454,33531.0,33530.0,1.2361483]
[1625499612497,1.25303454,33531.0,33530.0,1.2951483]
[1625499612596,1.25303454,33531.0,33530.0,3.58371363]
[1625499612949,0.57075345,33531.0,33530.0,3.58371363]
[1625499613447,0.51175345,33531.0,33530.0,3.58371363]
[1625499613698,0.17068459,33531.0,33530.0,3.58371363]
[1625499613898,0.17068459,33531.0,33530.0,4.30543995]
[1625499614152,0.51192807,33531.0,33530.0,4.30543995]
[1625499614451,0.17077038,33531.0,33530.0,5.71378698]
[1625499615003,0.25621205,33531.0,33530.0,4.30543995]
[1625499615856,0.25621205,33531.0,33530.0,5.71334501]
[1625499616254,0.17077038,33531.0,33530.0,5.71334501]
[1625499616454,0.17077038,33531.0,33530.0,5.65434501]
[1625499616705,0.17077038,33531.0,33530.0,4.24643995]
[1625499617756,0.25622972,33531.0,33530.0,4.24643995]
[1625499618008,0.25622972,33531.0,33530.0,4.30543995]
[1625499618758,0.25622972,33531.0,33530.0,5.71318483]
[1625499619210,0.08545934,33531.0,33530.0,4.30543995]
[1625499619360,0.08545934,33531.0,33530.0,4.30159734]
[1625499619713,0.25615939,33531.0,33530.0,4.30159734]
[1625499620062,0.25615939,33531.0,33530.0,4.30544031]
[1625499620166,0.08545934,33531.0,33530.0,4.30544031]
[1625499620665,0.08545934,33531.0,33530.0,4.36444031]
[1625499620765,0.25624142,33533.0,33530.0,5.77176515]
[1625499620865,0.12524142,33533.0,33530.0,5.77176515]
[1625499621115,0.08974142,33533.0,33530.0,5.77176515]
[1625499621317,0.07844142,33533.0,33531.0,0.00384269]
[1625499621428,0.07844142,33533.0,33531.0,0.33138269]
[1625499621520,0.07844142,33533.0,33531.0,0.39038269]
[1625499621617,0.07474142,33533.0,33531.0,0.39038269]
[1625499621729,0.05964142,33533.0,33531.0,0.39038269]
[1625499621821,0.04684142,33533.0,33531.0,0.47968269]
[1625499621923,0.51197105,33534.0,33532.0,0.00384243]
[1625499622021,0.46667105,33534.0,33532.0,0.06284243]
[1625499622120,0.44467105,33534.0,33532.0,0.12184243]
[1625499622222,0.07307105,33534.0,33533.0,0.01033082]
[1625499622323,0.05257105,33534.0,33533.0,0.01033082]
[1625499622423,0.34154693,33536.0,33533.0,0.13217283]
[1625499622768,0.34154693,33536.0,33534.0,0.01416233]
[1625499622927,0.34154693,33536.0,33534.0,0.13216233]
[1625499623057,1.19498755,33540.0,33534.0,0.13216233]
[1625499623058,0.34178097,33543.0,33535.0,4.3956881]
[1625499623230,0.34178097,33543.0,33536.0,4.8494]
[1625499623329,0.34178097,33543.0,33536.0,4.9084]
[1625499623426,0.34178097,33543.0,33536.0,4.9674]
[1625499623536,0.34171284,33542.0,33541.0,0.70269987]
[1625499623631,0.34171284,33542.0,33541.0,0.94990987]
[1625499623829,0.34171284,33542.0,33541.0,1.00890987]
[1625499623933,0.34168031,33543.0,33541.0,2.06285602]
[1625499624035,0.34168031,33543.0,33541.0,2.78458234]
[1625499624231,0.34168031,33543.0,33542.0,0.70262918]
[1625499624331,0.34168031,33543.0,33542.0,0.76162918]
[1625499624785,0.34168031,33543.0,33542.0,0.70262918]
[1625499625787,0.68339113,33544.0,33541.0,1.32000261]
[1625499625889,0.74239113,33544.0,33541.0,1.32000261]
[1625499625993,0.74239113,33544.0,33543.0,0.24057544]
[1625499626191,1.76572416,33544.0,33543.0,0.24057544]
[1625499627293,0.74239113,33544.0,33543.0,0.24057544]
[1625499627843,0.74239113,33544.0,33543.0,0.29957544]
[1625499627955,0.74239113,33544.0,33543.0,0.24057544]
[1625499628747,0.059,33544.0,33543.0,0.24057544]
[1625499629499,0.40013213,33544.0,33543.0,0.24057544]
[1625499629749,0.34113213,33544.0,33543.0,0.24057544]
[1625499629849,0.34113213,33544.0,33543.0,0.29957544]
[1625499629948,0.34113213,33544.0,33543.0,0.24057544]
[1625499630049,0.34119411,33545.0,33543.0,0.24057544]
[1625499630148,0.34119411,33545.0,33543.0,0.29957544]
[1625499630549,0.34119411,33545.0,33543.0,0.24057544]
[1625499630750,0.40019411,33545.0,33543.0,0.24057544]
[1625499630950,0.34115661,33544.0,33543.0,0.29957544]
[1625499631049,0.34115661,33544.0,33543.0,0.24057544]
[1625499631503,0.3412289,33545.0,33543.0,0.24057544]
[1625499631599,0.4002289,33545.0,33543.0,0.24057544]
[1625499631701,0.4002289,33545.0,33543.0,0.29957544]
[1625499631899,0.4002289,33545.0,33543.0,0.24057544]
[1625499632199,0.3412289,33545.0,33543.0,0.24057544]
[1625499632300,0.3412289,33545.0,33543.0,0.29957544]
[1625499632399,0.3412289,33545.0,33543.0,0.24057544]
[1625499632503,0.34115028,33546.0,33543.0,0.29957544]
[1625499632600,0.34115028,33546.0,33543.0,0.24057544]
[1625499632798,0.34115028,33546.0,33543.0,0.29957544]
[1625499632999,0.34115028,33546.0,33543.0,0.24057544]
[1625499633250,0.34115028,33546.0,33543.0,0.29957544]
[1625499634101,0.34115028,33546.0,33543.0,0.24057544]
[1625499634202,1.66355765,33548.0,33543.0,0.24057544]
[1625499634203,0.34106625,33547.0,33543.0,0.24057544]
[1625499634303,0.059,33546.0,33543.0,0.24057544]
[1625499634402,0.34106625,33547.0,33543.0,0.29957544]
[1625499634504,0.34105696,33546.0,33543.0,0.24057544]
[1625499634601,0.34105696,33546.0,33543.0,0.29957544]
[1625499634704,0.34105696,33546.0,33543.0,0.24057544]
[1625499634856,0.34110148,33547.0,33543.0,0.29957544]
[1625499634956,0.34110148,33547.0,33543.0,0.24057544]
[1625499635053,0.40010148,33547.0,33543.0,0.29957544]
[1625499635303,0.34109752,33546.0,33543.0,0.29957544]
[1625499635753,0.34107564,33547.0,33543.0,0.29957544]
[1625499635854,0.40007564,33547.0,33543.0,0.29957544]
[1625499636054,0.40007564,33547.0,33546.0,0.24057544]
[1625499636254,0.40007564,33547.0,33546.0,0.29957544]
[1625499636706,0.34107564,33547.0,33546.0,0.29957544]
[1625499637606,0.34109522,33548.0,33546.0,0.29957544]
[1625499638007,0.92259542,33549.0,33546.0,0.29957544]
[1625499638008,0.5816373,33549.0,33546.0,0.29957544]
[1625499638107,0.34106186,33549.0,33548.0,0.24057544]
[1625499638208,0.34106186,33549.0,33548.0,0.57391544]
[1625499638308,0.34106186,33549.0,33548.0,0.63291544]
[1625499638409,0.34113777,33550.0,33548.0,0.63291544]
[1625499638811,0.3411981,33551.0,33548.0,0.63291544]
[1625499638909,0.3411981,33551.0,33550.0,4.7162]
[1625499639013,0.3411981,33551.0,33550.0,4.7752]
[1625499639320,1.19376707,33555.0,33550.0,4.8342]
[1625499639321,0.34150301,33554.0,33550.0,4.8342]
[1625499639550,0.34150301,33554.0,33550.0,4.7752]
[1625499640062,0.34150301,33554.0,33553.0,0.48115088]
[1625499640262,0.74106718,33554.0,33553.0,0.48115088]
[1625499640362,0.68206718,33554.0,33553.0,0.48115088]
[1625499640666,1.70473036,33554.0,33553.0,0.48115088]
[1625499640963,0.68206718,33554.0,33553.0,0.48115088]
[1625499641170,0.68206718,33554.0,33553.0,0.54015088]
[1625499641715,1.02313584,33555.0,33553.0,0.54015088]
[1625499641716,0.34131276,33555.0,33553.0,0.54015088]
[1625499641823,0.34131276,33555.0,33553.0,0.48115088]
[1625499641916,0.34131276,33555.0,33553.0,0.54015088]
[1625499642117,0.34131276,33555.0,33554.0,0.24057544]
[1625499642216,0.68245495,33556.0,33554.0,0.24057544]
[1625499642217,0.3411967,33556.0,33554.0,0.24057544]
[1625499642316,0.3411967,33556.0,33554.0,0.29957544]
[1625499642616,0.34129112,33558.0,33554.0,0.29957544]
[1625499644070,0.3411572,33560.0,33557.0,0.24057544]
[1625499644168,0.3411572,33560.0,33557.0,0.52185544]
[1625499644269,0.3411572,33560.0,33557.0,0.58085544]
[1625499645671,0.58192732,33561.0,33557.0,0.58085544]
[1625499646072,0.64092732,33561.0,33557.0,0.52185544]
[1625499646181,0.64092732,33561.0,33560.0,0.24057544]
[1625499646522,0.98143955,33561.0,33560.0,0.24057544]
[1625499646624,1.04043955,33561.0,33560.0,0.24057544]
[1625499646722,0.98143955,33561.0,33560.0,0.24057544]
[1625499647321,0.29957544,33561.0,33560.0,0.24057544]
[1625499648024,0.64053988,33561.0,33560.0,0.24057544]
[1625499649081,0.98105066,33561.0,33560.0,0.24057544]
[1625499650177,1.04005066,33561.0,33560.0,0.24057544]
[1625499650278,1.05631507,33561.0,33560.0,0.24057544]
[1625499650479,2.0779261,33561.0,33560.0,0.24057544]
[1625499650579,2.06166169,33561.0,33560.0,0.24057544]
[1625499650835,2.00266169,33561.0,33560.0,0.24057544]
[1625499651333,0.98105066,33561.0,33560.0,0.24057544]
[1625499651684,1.04005066,33561.0,33560.0,0.24057544]
[1625499651781,2.06209994,33561.0,33560.0,0.24057544]
[1625499652535,2.07836439,33561.0,33560.0,0.24057544]
[1625499652835,2.00309994,33561.0,33560.0,0.24057544]
[1625499653034,2.06209994,33561.0,33560.0,0.24057544]
[1625499653135,2.07836439,33561.0,33560.0,0.24057544]
[1625499653236,2.01936439,33561.0,33560.0,0.24057544]
[1625499653335,2.00309994,33561.0,33560.0,0.24057544]
[1625499654245,2.06209994,33561.0,33560.0,0.24057544]
[1625499654348,2.00309994,33561.0,33560.0,0.24057544]
[1625499654944,2.06209994,33561.0,33560.0,0.24057544]
[1625499655044,2.00309994,33561.0,33560.0,0.24057544]
[1625499655195,2.06209994,33561.0,33560.0,0.24057544]
[1625499655399,2.00309994,33561.0,33560.0,0.24057544]
[1625499657096,0.98105066,33561.0,33560.0,0.24057544]
[1625499659099,0.64075029,33561.0,33560.0,0.24057544]
[1625499660201,0.40017485,33561.0,33560.0,0.24057544]
[1625499660953,0.74077389,33561.0,33560.0,0.24057544]
[1625499661854,0.059,33561.0,33560.0,0.24057544]
[1625499663256,0.40015072,33561.0,33560.0,0.24057544]
[1625499663660,0.68170317,33562.0,33560.0,0.24057544]
[1625499664160,0.34158507,33562.0,33560.0,0.24057544]
[1625499664272,0.34158507,33562.0,33561.0,0.24057544]
[1625499664508,0.68299944,33563.0,33561.0,0.24057544]
[1625499664509,0.34166049,33563.0,33561.0,0.24057544]
[1625499665663,0.40066049,33563.0,33561.0,0.24057544]
[1625499665865,0.059,33563.0,33561.0,0.24057544]
[1625499665963,4.8148,33562.0,33561.0,0.24057544]
[1625499666164,4.8738,33562.0,33561.0,0.24057544]
[1625499666365,0.059,33562.0,33561.0,0.24057544]
[1625499666465,0.34147376,33562.0,33561.0,0.47678544]
[1625499666766,0.34147376,33562.0,33561.0,0.48061886]
[1625499667369,0.34200144,33563.0,33561.0,0.48061886]
[1625499667817,0.34200144,33563.0,33562.0,0.0038332]
[1625499668369,0.34200144,33563.0,33561.0,0.47678544]
[1625499668569,0.40100144,33563.0,33561.0,0.47678544]
[1625499668772,0.46000144,33563.0,33561.0,0.47678544]
[1625499668872,0.46000144,33563.0,33561.0,0.24057544]
[1625499669119,0.34190877,33562.0,33561.0,0.24057544]
[1625499669174,0.63251525,33562.0,33561.0,0.24057544]
[1625499669272,0.69151525,33562.0,33561.0,0.24057544]
[1625499669597,2.1170827,33562.0,33561.0,0.24057544]
[1625499669977,4.67654651,33562.0,33558.0,0.01]
[1625499670230,4.67654651,33562.0,33557.0,0.24057544]
[1625499670324,0.48115088,33559.0,33553.0,0.24057544]
[1625499670426,4.7462607,33559.0,33553.0,0.24057544]
[1625499670525,4.8642607,33559.0,33553.0,0.24057544]
[1625499670778,0.68237904,33555.0,33553.0,0.24057544]
[1625499670875,1.07416904,33555.0,33553.0,0.24057544]
[1625499670975,1.13316904,33555.0,33553.0,0.24057544]
[1625499671076,0.01627504,33554.0,33553.0,0.24057544]
[1625499671178,0.698771,33554.0,33553.0,0.24057544]
[1625499671277,0.816771,33554.0,33553.0,0.24057544]
[1625499671577,1.84050971,33554.0,33553.0,0.24057544]
[1625499672280,2.08108515,33554.0,33553.0,0.24057544]
[1625499674585,2.06481011,33554.0,33553.0,0.24057544]
[1625499675086,2.08108513,33554.0,33553.0,0.24057544]
[1625499675836,2.06481011,33554.0,33553.0,0.24057544]
[1625499676438,2.00581011,33554.0,33553.0,0.24057544]
[1625499676539,2.00581011,33554.0,33553.0,0.54646544]
[1625499676786,1.94681011,33554.0,33553.0,0.54646544]
[1625499677890,0.9230714,33554.0,33553.0,0.54646544]
[1625499678039,0.9230714,33554.0,33553.0,0.55029769]
[1625499678190,0.9230714,33554.0,33553.0,0.60929769]
[1625499678340,0.58350971,33554.0,33553.0,0.60929769]
[1625499678945,0.24057544,33554.0,33553.0,0.96019618]
[1625499679146,0.34286732,33555.0,33553.0,0.96019618]
[1625499679449,0.34303162,33554.0,33553.0,1.31150166]
[1625499679650,0.34303162,33554.0,33553.0,1.30766941]
[1625499679958,0.34303162,33554.0,33553.0,1.25250137]
[1625499680250,0.34303162,33554.0,33553.0,0.5502974]
[1625499680658,0.34303162,33554.0,33553.0,0.6092974]
[1625499680740,0.34303162,33554.0,33553.0,1.31154966]
[1625499681102,0.34332871,33555.0,33553.0,2.3654692]
[1625499681503,0.34332871,33555.0,33554.0,1.76032735]
[1625499681606,0.29992871,33555.0,33554.0,1.81932735]
[1625499681707,0.29992871,33555.0,33554.0,1.87832735]
[1625499681910,0.68709208,33559.0,33554.0,4.51295963]
[1625499682104,0.68709208,33559.0,33554.0,4.45395963]
[1625499682357,0.68735433,33560.0,33558.0,2.23751758]
[1625499682554,0.68735433,33560.0,33558.0,2.35551758]
[1625499682755,0.68735433,33560.0,33559.0,0.00383161]
[1625499682854,0.92786856,33561.0,33559.0,0.76528199]
[1625499683254,0.68731798,33560.0,33559.0,0.76145038]
[1625499683515,0.68731798,33560.0,33559.0,0.76528181]
[1625499685261,0.68730175,33561.0,33559.0,0.85368181]
[1625499685360,0.68730175,33561.0,33559.0,0.76528181]
[1625499685660,0.68730175,33561.0,33559.0,0.76145038]
[1625499686414,0.68730175,33561.0,33560.0,0.24057544]
[1625499686513,0.68730175,33561.0,33560.0,0.53599544]
[1625499687113,0.68730175,33561.0,33560.0,1.23867309]
[1625499689778,1.54333979,33568.0,33560.0,0.53599544]
[1625499689873,1.60233979,33568.0,33560.0,0.53599544]
[1625499689974,1.66133979,33568.0,33560.0,0.53599544]
[1625499690074,0.0162602,33567.0,33560.0,0.53599544]
[1625499690173,0.1342602,33567.0,33560.0,0.53599544]
[1625499690377,1.71463384,33561.0,33560.0,1.23884203]
[1625499690975,1.71463384,33561.0,33560.0,0.53599544]
[1625499691476,1.71463384,33561.0,33560.0,1.23883435]
[1625499691675,1.77363384,33561.0,33560.0,1.23883435]
[1625499692176,1.71463384,33561.0,33560.0,1.23883435]
[1625499693079,1.71463384,33561.0,33560.0,1.32753435]
[1625499693179,1.71463384,33561.0,33560.0,1.23883435]
[1625499693280,1.71463384,33561.0,33560.0,1.29783435]
[1625499693379,1.71463384,33561.0,33560.0,1.23883435]
[1625499695585,1.71463384,33561.0,33560.0,2.29370404]
[1625499696236,1.71463384,33561.0,33560.0,2.2975367]
[1625499697338,0.68588782,33561.0,33560.0,2.2975367]
[1625499697639,0.68588782,33561.0,33560.0,2.29370404]
[1625499697839,1.71270092,33561.0,33560.0,2.29370404]
[1625499698191,1.71270092,33561.0,33560.0,2.29753665]
[1625499698893,1.71270092,33561.0,33560.0,3.52898642]
[1625499699495,0.68588782,33561.0,33560.0,3.52898642]
[1625499700598,0.68588782,33561.0,33560.0,3.52515381]
[1625499700796,1.71261544,33561.0,33560.0,2.35270404]
[1625499700895,1.71261544,33561.0,33560.0,2.35653653]
[1625499701403,1.71261544,33561.0,33560.0,3.58800386]
[1625499701858,0.68588782,33561.0,33560.0,3.58800386]
[1625499702908,0.68588782,33561.0,33560.0,3.52900386]
[1625499703407,0.68588782,33561.0,33560.0,3.58800386]
[1625499705415,1.71186194,33561.0,33560.0,2.35653653]
[1625499706970,0.68588782,33561.0,33560.0,3.5877182]
[1625499708670,0.68588782,33561.0,33560.0,3.5287182]
[1625499708775,0.70214736,33561.0,33560.0,3.5287182]
[1625499709122,1.72521962,33561.0,33560.0,2.29753653]
[1625499710222,1.72521962,33561.0,33560.0,1.24266684]
[1625499710823,0.70214736,33561.0,33560.0,2.29791022]
[1625499711624,1.72501908,33561.0,33560.0,2.29791022]
[1625499711973,0.70214736,33561.0,33560.0,2.29791022]
[1625499712377,1.72505647,33561.0,33560.0,2.29791022]
[1625499712925,1.21375761,33561.0,33560.0,2.82555901]
[1625499713728,2.23656315,33561.0,33560.0,2.82555901]
[1625499714380,1.21375761,33561.0,33560.0,2.82555901]
[1625499715429,1.21375761,33561.0,33560.0,4.05679897]
[1625499715731,1.21375761,33561.0,33560.0,4.11579897]
[1625499715930,1.21375761,33561.0,33560.0,4.05679897]
[1625499716031,1.19749807,33561.0,33560.0,4.11579897]
[1625499716131,0.51161025,33561.0,33560.0,4.11579897]
[1625499717032,0.51161025,33561.0,33560.0,4.05679897]
[1625499717131,0.51161025,33561.0,33560.0,4.11579897]
[1625499718737,0.52788863,33561.0,33560.0,4.11579897]
[1625499718936,0.52788863,33561.0,33560.0,4.05679897]
[1625499719035,0.51161025,33561.0,33560.0,4.05679897]
[1625499719237,1.19359446,33561.0,33560.0,4.05679897]
[1625499719536,1.20987305,33561.0,33560.0,4.05679897]
[1625499719686,1.20987305,33561.0,33560.0,2.82555901]
[1625499720786,1.20987305,33561.0,33560.0,2.88455901]
[1625499721538,2.2332353,33561.0,33560.0,2.94355901]
[1625499723341,1.20987305,33561.0,33560.0,2.94355901]
[1625499724194,1.20987305,33561.0,33560.0,2.88455901]
[1625499724444,1.20987305,33561.0,33560.0,2.64398357]
[1625499724895,1.20987305,33561.0,33560.0,3.60628533]
[1625499726146,1.20987305,33561.0,33560.0,4.83746229]
[1625499727200,1.20987305,33561.0,33560.0,4.92626229]
[1625499728603,1.20987305,33561.0,33560.0,4.83746229]
[1625499733921,2.23504864,33561.0,33560.0,4.83746229]
[1625499734323,2.55167864,33561.0,33560.0,4.83746229]
[1625499734526,2.55167864,33561.0,33560.0,4.77846229]
[1625499734632,2.61067864,33561.0,33560.0,4.77846229]
[1625499734726,2.66967864,33561.0,33560.0,4.77846229]
[1625499735426,2.66967864,33561.0,33560.0,2.77726229]
[1625499735528,5.23029305,33561.0,33557.0,0.64283605]
[1625499735835,0.01633909,33560.0,33558.0,0.0038125]
[1625499735929,0.07533909,33560.0,33558.0,0.0038125]
[1625499736027,0.07533909,33560.0,33557.0,0.64283605]
[1625499736028,0.07533909,33560.0,33555.0,0.05412658]
[1625499736127,0.13433909,33560.0,33555.0,0.05412658]
[1625499736228,1.5352684,33558.0,33551.0,4.5532]
[1625499736427,1.6532684,33558.0,33556.0,0.003809]
[1625499736727,0.0163523,33557.0,33552.0,0.00380918]
[1625499736830,1.53324246,33555.0,33552.0,0.00380918]
[1625499737029,0.94336632,33553.0,33552.0,0.00380918]
[1625499737133,1.00236632,33553.0,33552.0,0.00380918]
[1625499737227,1.00236632,33553.0,33551.0,4.5532]
[1625499737228,1.06136632,33553.0,33551.0,4.5532]
[1625499737428,1.06136632,33553.0,33552.0,0.00381259]
[1625499737527,1.00236632,33553.0,33552.0,0.00381259]
[1625499738579,0.78072632,33553.0,33552.0,0.00381259]
[1625499739280,0.78072632,33553.0,33552.0,0.28532259]
[1625499741884,0.78072632,33553.0,33552.0,0.34432259]
[1625499741984,0.78072632,33553.0,33552.0,0.28532259]
[1625499742193,0.78072632,33553.0,33552.0,0.34432259]
[1625499742286,0.78072632,33553.0,33552.0,0.28532259]
[1625499742488,0.72172632,33553.0,33552.0,0.28532259]
[1625499742588,0.72172632,33553.0,33552.0,0.37542259]
[1625499742937,0.72172632,33553.0,33552.0,0.28532259]
[1625499743036,0.72172632,33553.0,33552.0,0.35463972]
[1625499743153,0.72172632,33553.0,33552.0,0.41363972]
[1625499743490,0.72172632,33553.0,33552.0,0.35463972]
[1625499743600,0.72172632,33553.0,33552.0,1.93958301]
[1625499744695,0.72172632,33553.0,33552.0,1.99858301]
[1625499744994,0.72172632,33553.0,33552.0,2.23915845]
[1625499745494,0.72172632,33553.0,33552.0,2.18015845]
[1625499749151,0.72172632,33553.0,33552.0,2.27015845]
[1625499751356,0.72172632,33553.0,33552.0,3.58901513]
[1625499752858,0.72172632,33553.0,33552.0,2.00407184]
[1625499753359,0.72172632,33553.0,33552.0,3.58904975]
[1625499753861,0.72172632,33553.0,33552.0,2.00407184]
[1625499754864,0.72172632,33553.0,33552.0,3.58898606]
[1625499756317,0.72172632,33553.0,33552.0,4.8216727]
[1625499756629,0.48115088,33553.0,33552.0,4.8806727]
[1625499758171,0.48115088,33553.0,33552.0,2.23912938]
[1625499758724,1.25563252,33560.0,33552.0,4.63999158]
[1625499758823,1.19863252,33560.0,33552.0,4.63999158]
[1625499758923,1.19863252,33560.0,33553.0,0.01031593]
[1625499759027,1.19863252,33560.0,33553.0,0.07312279]
[1625499759124,1.19863252,33560.0,33553.0,0.13212279]
[1625499759277,0.24057544,33554.0,33553.0,0.37269823]
[1625499759376,0.24057544,33554.0,33553.0,0.36889137]
[1625499759476,0.24057544,33554.0,33553.0,1.95370051]
[1625499759576,0.24057544,33554.0,33553.0,1.9575073]
[1625499759975,0.24057544,33554.0,33553.0,4.5988426]
[1625499760526,0.24057544,33554.0,33553.0,4.5398426]
[1625499760727,0.19597544,33554.0,33553.0,4.5398426]
[1625499761129,0.14907544,33554.0,33553.0,4.5398426]
[1625499762381,0.13747544,33554.0,33553.0,4.5398426]
[1625499762530,0.13177544,33554.0,33553.0,4.5398426]
[1625499762630,0.13177544,33554.0,33553.0,4.52952667]
[1625499762782,0.12587544,33554.0,33553.0,4.52952667]